bitfinex-derivatives/quotes_ETHF0:USTF0_20250616
["timestamp","ask_amount","ask_price","bid_price","bid_amount"]
[1750041009150,0.77741,2572.2,2571.9,0.6436]
[1750041009350,0.77741,2572.2,2572.0,1.2561]
[1750041009746,0.77743,2572.1,2572.0,1.2561]
[1750041009940,0.77741,2572.2,2572.0,1.2561]
[1750041010144,0.78318771,2572.4,2572.0,2.03355]
[1750041010347,0.00583771,2572.4,2572.3,3.2078]
[1750041010655,0.00583771,2572.4,2572.1,0.77741]
[1750041010856,0.78317771,2572.4,2572.2,1.2561]
[1750041011150,0.00583771,2572.4,2572.2,1.2561]
[1750041011755,0.78318771,2572.4,2572.2,1.2561]
[1750041011957,0.77737,2572.3,2572.2,1.2561]
[1750041012153,3.2078,2572.3,2571.8,0.6658]
[1750041012452,3.8281,2572.3,2571.6,3.2078]
[1750041012650,0.00583771,2572.4,2572.0,0.77744]
[1750041012854,0.00583771,2572.4,2572.1,1.9623]
[1750041012855,0.77739,2572.3,2572.1,1.9623]
[1750041013155,0.78317771,2572.4,2572.1,1.9623]
[1750041013349,0.78317771,2572.4,2572.2,1.3261]
[1750041013748,0.00583771,2572.4,2572.2,1.3261]
[1750041014355,0.77737,2572.3,2572.2,1.3261]
[1750041014749,0.00583771,2572.4,2572.2,1.3261]
[1750041014950,0.00583771,2572.4,2572.3,0.77737]
[1750041015258,0.00583771,2572.4,2572.3,0.77736]
[1750041015956,0.00583771,2572.4,2572.2,2.10348]
[1750041016461,0.78316771,2572.4,2572.3,1.3629]
[1750041017950,3.99096771,2572.4,2572.1,0.6362]
[1750041018157,3.9852,2572.2,2572.1,0.6362]
[1750041018654,0.7774,2572.2,2572.1,0.6362]
[1750041021761,0.77743,2572.1,2572.0,0.6588]
[1750041022063,0.7775,2571.9,2571.6,1.42988]
[1750041022253,0.77752,2571.8,2571.7,1.3663]
[1750041022453,0.7776,2571.6,2571.3,0.78155908]
[1750041022650,0.77761,2571.5,2571.3,1.37018908]
[1750041022856,3.2078,2571.9,2571.3,1.37018908]
[1750041023056,0.7776,2571.6,2571.3,2.14784908]
[1750041023257,5.15145,2572.0,2571.3,1.37018908]
[1750041023460,6.44165,2572.0,2571.3,1.37018908]
[1750041023759,0.77763,2571.5,2571.3,0.00388908]
[1750041023957,0.77764,2571.4,2571.3,1.26648908]
[1750041024161,4.5712,2572.1,2571.6,0.77755]
[1750041024354,1.3634,2572.1,2571.4,3.2078]
[1750041024665,0.77754,2571.8,2571.5,2.0402]
[1750041024864,0.77755,2571.7,2571.5,2.0402]
[1750041025062,0.77755,2571.7,2571.5,1.2626]
[1750041025364,0.77758,2571.6,2571.5,8.1896]
[1750041026061,3.2078,2571.9,2571.5,2.0402]
[1750041026268,1.36,2572.0,2571.5,1.2626]
[1750041026458,3.2078,2571.9,2571.5,1.2626]
[1750041027356,0.77758,2571.6,2571.5,1.2626]
[1750041027552,0.77764,2571.4,2571.3,0.00388908]
[1750041028468,2.67084,2571.4,2571.3,0.00388908]
[1750041032263,3.64395944,2571.4,2571.3,0.00388908]
[1750041033569,0.7777,2571.2,2571.1,0.00583771]
[1750041035259,3.98548,2571.3,2571.1,0.00583771]
[1750041035474,3.98548,2571.3,2571.1,0.78355771]
[1750041035475,3.98547,2571.3,2571.1,0.78355771]
[1750041035773,3.2078,2571.3,2571.2,1.9194]
[1750041036069,3.98547,2571.3,2571.2,1.9194]
[1750041036665,0.7777,2571.2,2571.1,0.00583771]
[1750041039170,1.94441,2571.0,2570.1,3.2078]
[1750041039467,3.2078,2570.8,2570.3,0.6842]
[1750041039775,3.98574,2570.4,2570.3,0.6842]
[1750041040667,0.77794,2570.4,2570.3,0.6842]
[1750041042266,0.00583771,2570.6,2570.3,0.6842]
[1750041042471,0.00583771,2570.6,2570.5,3.2078]
[1750041042666,0.00583771,2570.6,2570.5,0.77791]
[1750041042869,0.00583771,2570.6,2570.5,2.08041]
[1750041044270,0.00583771,2570.6,2570.3,0.6842]
[1750041044475,0.77792,2570.5,2570.3,0.6842]
[1750041044665,0.77792,2570.5,2570.4,1.3025]
[1750041044868,0.00583771,2570.6,2570.1,3.99164771]
[1750041044869,0.00583771,2570.6,2570.1,0.00583771]
[1750041045174,0.778,2570.2,2570.1,0.00583771]
[1750041047168,0.77795,2570.4,2570.1,0.78385771]
[1750041047475,0.77793,2570.5,2570.2,0.778]
[1750041047667,0.77793,2570.5,2570.3,1.3312]
[1750041048072,0.77794,2570.4,2570.3,1.3312]
[1750041048877,0.77792,2570.5,2570.3,1.3312]
[1750041049473,0.77794,2570.4,2570.3,1.3312]
[1750041049671,0.77793,2570.5,2570.3,1.3312]
[1750041049976,0.77797,2570.4,2570.1,0.78386771]
[1750041050275,6.91183771,2570.6,2570.1,0.00583771]
[1750041050488,0.778,2570.2,2570.1,0.00583771]
[1750041054076,6.30088034,2570.3,2569.6,1.2669]
[1750041054277,0.77809,2569.9,2569.6,1.2669]
[1750041054580,0.77815,2569.7,2569.6,1.2669]
[1750041055079,0.77818,2569.6,2569.5,1.3354]
[1750041055681,0.77817,2569.7,2569.5,1.3354]
[1750041055868,0.77818,2569.6,2569.5,2.6259]
[1750041058082,0.77817,2569.7,2569.5,2.6259]
[1750041058880,6.907,2570.1,2569.7,0.77815]
[1750041059082,0.97821604,2570.0,2569.8,1.3242]
[1750041059284,0.77809,2569.9,2569.8,1.3242]
[1750041059583,6.907,2570.1,2569.8,1.3242]
[1750041059584,0.77808,2570.0,2569.8,1.3242]
[1750041059778,0.77809,2569.9,2569.8,1.3242]
[1750041060783,0.77805,2570.1,2569.8,1.3242]
[1750041060983,0.77805,2570.1,2569.8,2.10231]
[1750041061186,0.77808,2570.0,2569.8,1.3242]
[1750041061682,3.2078,2570.3,2569.9,0.77809]
[1750041061884,0.97831579,2570.2,2570.0,1.2406]
[1750041062083,0.77802,2570.2,2570.0,2.65346]
[1750041062585,0.77802,2570.2,2570.1,0.6673]
[1750041063480,0.77803,2570.1,2570.0,0.6348]
[1750041063682,0.77821,2569.5,2569.4,0.00583771]
[1750041063880,0.77821,2569.5,2569.4,1.26343771]
[1750041064287,0.7782,2569.6,2569.4,1.26343771]
[1750041064773,0.77821,2569.5,2569.4,1.26343771]
[1750041065185,0.7782,2569.6,2569.4,1.26343771]
[1750041065371,0.77821,2569.5,2569.4,1.26343771]
[1750041065772,0.7782,2569.6,2569.4,2.04167771]
[1750041065983,0.77814,2569.8,2569.6,0.77817]
[1750041066186,0.77814,2569.8,2569.7,2.5439]
[1750041066684,0.6542,2570.3,2569.7,3.32205]
[1750041066886,0.77808,2570.0,2569.8,0.7781]
[1750041067081,0.77808,2570.0,2569.9,1.2627]
[1750041067279,1.75872426,2570.0,2569.9,1.2627]
[1750041067585,6.908,2570.3,2569.9,1.2627]
[1750041067784,0.77812,2569.8,2569.7,0.6449]
[1750041068479,0.77821,2569.5,2569.4,0.00583771]
[1750041068682,0.77821,2569.5,2569.4,1.26853771]
[1750041068881,1.75982758,2569.5,2569.4,1.26853771]
[1750041069880,1.75982758,2569.5,2569.4,0.00583771]
[1750041069881,4.96762758,2569.5,2569.4,0.00583771]
[1750041071085,0.77833,2569.1,2569.0,1.3242]
[1750041072581,0.77832,2569.2,2569.0,1.3242]
[1750041072990,0.77832,2569.2,2569.0,2.6726]
[1750041073188,0.77833,2569.1,2569.0,2.6726]
[1750041073386,1.95154771,2569.3,2568.8,0.00583771]
[1750041073688,1.95154771,2569.3,2567.7,1.94688]
[1750041073689,0.77858,2568.3,2568.2,0.6314]
[1750041073982,4.35589034,2568.9,2568.2,0.6314]
[1750041073983,10.1168,2568.6,2568.2,0.6314]
[1750041074188,0.98177954,2568.5,2568.4,0.77855]
[1750041074385,3.2078,2568.9,2568.3,1.9781]
[1750041074589,1.76063468,2568.8,2568.3,1.9781]
[1750041074890,0.77846,2568.7,2568.3,1.98199182]
[1750041075188,3.2078,2568.9,2568.3,1.98199182]
[1750041075402,0.77846,2568.7,2568.4,0.77855]
[1750041075690,0.77846,2568.7,2568.5,1.3484]
[1750041075878,0.77849,2568.6,2568.5,1.3484]
[1750041076086,3.2078,2568.6,2568.3,0.63359182]
[1750041076391,0.77855,2568.4,2568.3,0.00389182]
[1750041078593,0.77855,2568.5,2568.3,0.00389182]
[1750041078799,0.77855,2568.4,2568.3,0.00389182]
[1750041080585,0.77855,2568.4,2567.6,6.886]
[1750041080586,6.886,2568.4,2567.5,3.2078]
[1750041080792,0.77862,2568.2,2567.7,0.6643]
[1750041080987,3.2078,2568.4,2567.8,1.3193]
[1750041081291,0.77863,2568.2,2567.8,1.3193]
[1750041081692,10.0938,2568.4,2567.8,1.3193]
[1750041081893,0.77864,2568.1,2567.8,1.3193]
[1750041082089,0.77872,2567.9,2567.7,0.6643]
[1750041082397,3.2078,2568.1,2567.2,3.2078]
[1750041082398,6.886,2568.0,2567.2,3.2078]
[1750041082693,0.00583771,2567.9,2567.8,0.77873]
[1750041083396,0.00583771,2567.9,2567.3,3.8669]
[1750041083791,0.00583771,2567.9,2567.6,0.77879]
[1750041083990,3.21363771,2567.9,2567.3,3.8669]
[1750041084190,3.99235771,2567.9,2567.5,0.77882]
[1750041084390,0.77873,2567.8,2567.4,0.77884]
[1750041084593,3.99235771,2567.9,2567.5,0.77882]
[1750041085083,0.00583771,2567.9,2567.6,0.77879]
[1750041085488,0.78453771,2567.9,2567.5,0.77881]
[1750041085983,0.00583771,2567.9,2567.6,0.77879]
[1750041086188,0.78453771,2567.9,2567.6,0.77879]
[1750041086389,0.78453771,2567.9,2567.5,0.7788]
[1750041086589,3.21363771,2567.9,2567.3,4.64576]
[1750041086799,3.21363771,2567.9,2567.3,4.64578]
[1750041086997,3.98665,2567.5,2567.3,0.6591]
[1750041087387,3.2078,2567.5,2567.3,0.6591]
[1750041087695,3.98664,2567.5,2567.3,0.6591]
[1750041087898,0.77885,2567.4,2567.0,0.77896]
[1750041088094,3.2078,2567.5,2566.9,3.2078]
[1750041088095,3.2078,2567.5,2566.9,3.8515]
[1750041088501,0.77887,2567.4,2567.0,0.77896]
[1750041088699,0.77888,2567.3,2567.0,0.77897]
[1750041089097,0.77894,2567.2,2566.8,0.77902]
[1750041089297,10.0958,2567.4,2566.7,7.5317]
[1750041089602,0.77888,2567.3,2566.7,7.5317]
[1750041089993,0.77888,2567.3,2567.0,0.77896]
[1750041090195,0.77891,2567.2,2566.7,0.6437]
[1750041090395,0.7789,2567.3,2566.9,0.77899]
[1750041090597,0.7789,2567.3,2566.7,0.6437]
[1750041090900,0.7789,2567.3,2566.9,0.77898]
[1750041091097,3.2078,2567.4,2566.7,0.6437]
[1750041091299,0.77889,2567.3,2566.9,0.77898]
[1750041091700,3.2078,2567.4,2567.0,0.77897]
[1750041091701,3.98667,2567.4,2567.0,0.77897]
[1750041091893,3.2078,2567.4,2566.7,0.6437]
[1750041092093,3.2078,2567.4,2567.1,0.77893]
[1750041092297,3.2078,2567.4,2566.7,0.6437]
[1750041092494,3.2078,2567.4,2567.1,0.77893]
[1750041093497,3.98665,2567.4,2567.1,0.77893]
[1750041093701,3.98665,2567.4,2566.7,0.6437]
[1750041093702,0.77893,2567.2,2566.8,0.77901]
[1750041094405,0.77894,2567.2,2566.8,0.77901]
[1750041094605,0.77894,2567.2,2566.7,0.6437]
[1750041094799,3.2078,2567.4,2567.0,0.77896]
[1750041095200,0.77889,2567.3,2567.0,0.77896]
[1750041096004,3.98667,2567.4,2567.0,0.77896]
[1750041096505,0.7789,2567.3,2567.0,0.77897]
[1750041096804,0.77891,2567.2,2566.8,2.03392]
[1750041097205,0.77891,2567.2,2566.8,1.2549]
[1750041097401,0.77891,2567.2,2566.8,2.03392]
[1750041097703,3.98667,2567.4,2567.0,0.77897]
[1750041097898,3.2078,2567.4,2567.1,1.2717]
[1750041098106,3.2078,2567.4,2567.3,0.77888]
[1750041098704,0.77889,2567.3,2566.9,1.4696]
[1750041099301,0.77889,2567.3,2567.0,2.05067]
[1750041099702,0.77889,2567.3,2567.0,1.2845]
[1750041099901,0.77893,2567.2,2567.0,1.2845]
[1750041100106,0.7789,2567.3,2567.0,0.0128]
[1750041100302,0.77892,2567.2,2567.0,0.0128]
[1750041101010,3.2078,2567.4,2567.0,0.0128]
[1750041101308,0.77892,2567.2,2567.0,0.0128]
[1750041101508,0.77892,2567.2,2567.0,1.3016]
[1750041102004,0.7789,2567.3,2567.0,1.3016]
[1750041102503,3.2078,2567.4,2567.0,1.3016]
[1750041102504,0.77892,2567.2,2567.0,1.3016]
[1750041102807,0.77892,2567.2,2567.0,0.0128]
[1750041103605,0.77891,2567.3,2567.0,0.0128]
[1750041103802,0.77891,2567.3,2567.0,0.79177]
[1750041104002,3.98667,2567.4,2567.0,2.13637]
[1750041104206,1.76328126,2567.3,2567.0,2.13637]
[1750041104414,3.2078,2567.4,2567.0,2.13637]
[1750041104415,3.98668,2567.4,2567.0,2.13637]
[1750041104710,0.98487715,2567.3,2567.0,2.13637]
[1750041105010,3.98668,2567.4,2567.0,2.13637]
[1750041105211,1.76377188,2567.3,2567.0,2.13637]
[1750041105411,0.77889,2567.3,2567.0,1.3574]
[1750041106310,3.98666,2567.4,2567.1,0.77894]
[1750041106506,0.98564896,2567.3,2567.0,2.13636]
[1750041106809,0.98564896,2567.3,2567.0,1.3574]
[1750041106810,0.77889,2567.3,2567.0,1.3574]
[1750041107012,0.98570376,2567.2,2567.0,2.13637]
[1750041107211,0.77889,2567.3,2567.0,2.13637]
[1750041107412,0.98570184,2567.2,2567.0,2.13637]
[1750041107707,0.77889,2567.3,2567.0,2.13637]
[1750041107905,0.98604106,2567.2,2567.0,2.13637]
[1750041108105,0.77889,2567.3,2567.0,2.13637]
[1750041108304,0.98603563,2567.2,2567.0,2.13637]
[1750041108515,0.77889,2567.3,2567.0,2.13637]
[1750041108712,0.98647053,2567.2,2567.0,2.13637]
[1750041108917,0.77889,2567.3,2567.0,1.3574]
[1750041109210,0.9864704,2567.2,2567.0,2.13638]
[1750041109412,0.98682948,2567.1,2567.0,1.3574]
[1750041109614,0.98682948,2567.1,2567.0,2.13638]
[1750041109814,0.98682948,2567.1,2567.0,2.12358]
[1750041110013,3.98667,2567.4,2567.1,0.77894]
[1750041110211,0.9867843,2567.3,2567.1,0.77894]
[1750041110408,0.9867843,2567.2,2567.0,2.12356]
[1750041110716,3.2078,2567.4,2567.1,0.77895]
[1750041110916,1.76611194,2567.3,2567.0,2.12356]
[1750041111219,0.98720194,2567.2,2567.0,1.91796833]
[1750041111715,0.98720194,2567.2,2566.9,3.8984]
[1750041111917,0.98720194,2567.1,2566.9,3.8984]
[1750041112218,0.98720194,2567.1,2566.9,4.67739]
[1750041113311,0.98720194,2567.1,2567.0,0.77898]
[1750041113507,0.98720194,2567.2,2567.0,0.77898]
[1750041114616,0.98720194,2567.2,2567.0,2.08618]
[1750041114917,0.98720194,2567.2,2567.1,0.77895]
[1750041115118,0.98720194,2567.5,2567.1,0.77895]
[1750041115417,0.77889,2567.3,2567.1,0.77895]
[1750041115616,0.98720194,2567.2,2567.1,0.77895]
[1750041116518,0.77888,2567.4,2567.1,0.77895]
[1750041116817,0.98720194,2567.3,2567.1,0.77895]
[1750041117121,0.98720194,2567.2,2567.1,0.77895]
[1750041117314,2.96409915,2567.5,2567.2,0.77892]
[1750041117517,1.76835902,2567.4,2567.1,0.77893]
[1750041117716,0.98949902,2567.3,2567.1,0.77893]
[1750041117921,1.76838902,2567.3,2567.1,0.77893]
[1750041118112,0.98949902,2567.2,2567.1,0.77893]
[1750041118621,0.98949902,2567.2,2567.0,2.08616]
[1750041119318,1.76841902,2567.2,2567.0,2.08616]
[1750041119514,0.98949902,2567.1,2567.0,2.08616]
[1750041119712,0.98949902,2567.2,2567.0,2.08616]
[1750041119913,0.98949902,2567.1,2567.0,2.08616]
[1750041120216,1.76841902,2567.2,2567.0,2.08616]
[1750041120419,0.98974533,2567.1,2567.0,1.3072]
[1750041120718,0.00583771,2567.9,2567.8,0.77873]
[1750041120914,0.00583771,2567.9,2567.8,6.17178915]
[1750041121216,0.77857,2568.4,2568.0,0.77865]
[1750041121609,10.40785915,2568.6,2568.0,0.77865]
[1750041121610,2.31793027,2568.6,2568.2,2.18525915]
[1750041121808,3.09632027,2569.0,2568.6,0.77849]
[1750041122115,0.77839,2569.0,2568.6,0.77848]
[1750041122313,0.7784,2568.9,2568.6,2.04868]
[1750041122514,0.77844,2568.8,2568.6,1.2702]
[1750041123422,0.77842,2568.9,2568.6,1.2702]
[1750041123817,2.68853771,2569.1,2568.6,1.2702]
[1750041124121,3.46688771,2569.1,2568.7,0.77846]
[1750041124321,0.00583771,2569.1,2568.8,0.77842]
[1750041124623,0.00583771,2569.1,2569.0,0.77837]
[1750041124923,0.00583771,2569.1,2569.0,3.98617]
[1750041125820,1.4607,2569.6,2569.1,0.77831]
[1750041126023,1.4607,2569.6,2569.2,1.2355]
[1750041126216,10.85294,2569.8,2569.3,3.98606]
[1750041126416,10.85294,2569.8,2569.4,1.2355]
[1750041126417,0.77816,2569.7,2569.4,1.2355]
[1750041126611,3.21363771,2569.8,2569.4,1.2355]
[1750041126914,0.78396771,2569.8,2569.4,2.01373]
[1750041127314,0.00583771,2569.8,2569.4,2.01373]
[1750041127618,0.00583771,2569.8,2569.5,0.77822]
[1750041127831,0.00583771,2569.8,2569.5,2.67691]
[1750041128018,0.00583771,2569.8,2569.5,1.8987]
[1750041128224,0.00583771,2569.8,2569.5,2.67692]
[1750041128813,0.78397771,2569.8,2569.5,1.8987]
[1750041129016,0.00583771,2569.8,2569.5,2.67692]
[1750041129716,0.00583771,2569.8,2569.6,3.98598]
[1750041130024,0.00583771,2569.8,2569.7,1.2538]
[1750041130723,0.00583771,2569.8,2569.7,2.03196]
[1750041131723,3.2078,2570.1,2569.7,13.1188]
[1750041131915,3.2078,2570.1,2569.7,8.1188]
[1750041132115,3.2078,2570.6,2569.9,3.98589]
[1750041132314,0.77801,2570.2,2570.0,1.3342]
[1750041132525,0.778,2570.3,2570.0,1.3342]
[1750041133030,0.00583771,2570.4,2570.0,1.3342]
[1750041133225,0.77799,2570.3,2570.0,2.11226]
[1750041133520,0.77799,2570.3,2570.0,1.3342]
[1750041133718,0.00583771,2570.4,2570.0,1.3342]
[1750041133925,0.00583771,2570.4,2570.0,1.3469]
[1750041134119,0.00583771,2570.4,2570.0,2.12495]
[1750041134120,0.78380771,2570.4,2570.0,2.12495]
[1750041134318,0.78380771,2570.4,2570.1,0.77804]
[1750041134524,0.00583771,2570.4,2570.2,2.66621]
[1750041134722,0.00583771,2570.4,2570.3,2.66969]
[1750041134926,0.00583771,2570.4,2570.3,5.87749]
[1750041135229,0.00583771,2570.4,2570.3,5.87748]
[1750041136027,0.00583771,2570.4,2570.3,5.0995]
[1750041136227,0.00583771,2570.4,2570.3,1.8917]
[1750041136427,0.00583771,2570.4,2570.3,2.66969]
[1750041136727,0.00583771,2570.4,2570.3,5.87749]
[1750041137729,0.00583771,2570.4,2570.3,2.66969]
[1750041137921,0.00583771,2570.4,2570.3,5.87749]
[1750041141130,3.21363771,2570.4,2570.0,0.0127]
[1750041141332,8.35163846,2570.1,2570.0,0.0127]
[1750041141934,0.77805,2570.1,2570.0,0.0127]
[1750041142136,1.3539,2570.3,2570.0,0.0127]
[1750041142434,1.3539,2570.3,2570.0,0.79077]
[1750041142435,0.778,2570.3,2570.0,0.79077]
[1750041142629,0.778,2570.3,2570.0,1.41727]
[1750041142830,0.778,2570.3,2570.0,2.66117]
[1750041143133,0.77805,2570.1,2570.0,0.6392]
[1750041143336,0.77805,2570.1,2570.0,0.0127]
[1750041143629,0.77803,2570.2,2570.0,0.79078]
[1750041143833,0.77803,2570.2,2570.0,0.0127]
[1750041144034,0.77803,2570.1,2570.0,0.0127]
[1750041144238,0.77801,2570.2,2570.0,0.79077]
[1750041144428,0.77801,2570.2,2570.0,0.0127]
[1750041145231,0.77801,2570.2,2570.0,0.79077]
[1750041145438,0.77801,2570.2,2570.0,0.0127]
[1750041146434,0.77801,2570.2,2570.0,0.79077]
[1750041147035,1.41179,2570.3,2570.0,0.79077]
[1750041147235,1.41179,2570.3,2570.0,2.10477]
[1750041148037,1.41179,2570.3,2570.0,2.10475]
[1750041148538,0.77802,2570.2,2570.0,2.10475]
[1750041149033,1.4118,2570.3,2570.0,2.10475]
[1750041149229,0.77801,2570.2,2570.0,2.10475]
[1750041150437,1.4118,2570.3,2570.1,0.77804]
[1750041150736,1.4118,2570.3,2570.0,2.10475]
[1750041151337,0.6338,2570.3,2570.0,2.10475]
[1750041151537,1.41179,2570.3,2570.0,2.10475]
[1750041151729,1.41179,2570.3,2570.0,1.3267]
[1750041151932,0.97225273,2570.2,2570.0,1.3267]
[1750041152139,1.4118,2570.3,2570.0,2.10477]
[1750041152332,0.97225427,2570.2,2570.0,2.10477]
[1750041152536,1.4118,2570.3,2570.1,0.77805]
[1750041152737,0.97287211,2570.2,2570.1,0.77805]
[1750041153137,0.97287211,2570.2,2570.0,2.78776]
[1750041153437,1.41179,2570.3,2570.1,0.0423]
[1750041153629,0.97364107,2570.2,2570.1,0.0423]
[1750041153831,1.75166107,2570.2,2570.1,0.0423]
[1750041154235,0.97364107,2570.2,2570.1,0.0423]
[1750041154741,0.97364107,2570.2,2570.1,0.82035]
[1750041156540,1.75167107,2570.2,2570.1,0.0423]
[1750041156941,0.97364107,2570.2,2570.1,0.82036]
[1750041158236,1.75167107,2570.2,2570.1,0.82036]
[1750041159337,3.93205266,2570.2,2570.1,0.0423]
[1750041159638,0.7783,2569.3,2569.1,0.77835]
[1750041159833,0.7783,2569.3,2569.1,0.77834]
[1750041159834,6.16648159,2569.3,2569.1,0.77834]
[1750041160033,0.97708702,2569.2,2568.9,3.8476]
[1750041160234,3.93584861,2569.1,2568.9,3.8476]
[1750041160539,0.97708702,2569.0,2568.9,4.62602]
[1750041160745,0.97708702,2569.0,2568.7,0.00583771]
[1750041161050,0.97708702,2568.9,2568.8,0.77845]
[1750041161841,0.97708702,2568.9,2568.7,0.00583771]
[1750041161842,0.97556919,2568.9,2568.7,0.78430771]
[1750041162136,0.77845,2568.8,2568.7,0.00583771]
[1750041162336,0.9756239,2568.8,2568.7,0.00583771]
[1750041162536,0.9756239,2568.8,2568.7,0.78431771]
[1750041162836,0.77842,2568.9,2568.7,0.00583771]
[1750041163043,0.97468975,2568.8,2568.7,0.78431771]
[1750041163635,3.8774,2569.0,2568.7,0.00583771]
[1750041163939,0.00583771,2569.1,2568.9,0.77841]
[1750041164238,0.97393119,2569.0,2568.8,0.77843]
[1750041164434,0.78420771,2569.1,2568.8,0.77843]
[1750041164639,1.75234227,2569.0,2568.7,2.03360771]
[1750041164831,2.95883159,2568.8,2568.7,0.00583771]
[1750041165234,5.26070765,2568.8,2568.7,0.00583771]
[1750041167633,4.28583159,2568.8,2568.7,0.00583771]
[1750041169143,4.48144767,2568.8,2568.1,1.45684]
[1750041169341,2.18038159,2568.5,2568.2,0.77862]
[1750041169844,2.18038159,2568.5,2568.1,0.6782]
[1750041170043,0.6276,2568.9,2568.7,0.77847]
[1750041170350,1.40603,2568.9,2568.7,0.77847]
[1750041170839,0.6276,2568.9,2568.5,0.66803771]
[1750041171046,2.95889159,2568.6,2568.5,0.00583771]
[1750041172041,3.99200771,2569.1,2568.5,0.00583771]
[1750041172241,3.99200771,2569.1,2568.6,2.18038159]
[1750041172540,3.99200771,2569.1,2568.9,0.77841]
[1750041172840,0.7784,2569.0,2568.7,2.77716]
[1750041173040,3.21363771,2569.1,2568.9,0.77841]
[1750041173246,3.21363771,2569.1,2568.7,2.77717]
[1750041173540,0.77842,2569.0,2568.7,2.77717]
[1750041174140,3.99200771,2569.1,2568.8,0.77845]
[1750041174339,0.00583771,2569.1,2569.0,0.77839]
[1750041175443,0.00583771,2569.1,2568.8,4.5068]
[1750041175444,0.78421771,2569.1,2568.8,4.5068]
[1750041175745,0.78421771,2569.1,2568.8,5.28523]
[1750041176049,0.78421771,2569.1,2568.8,1.299]
[1750041176346,0.78421771,2569.1,2568.7,0.6846]
[1750041176347,0.77842,2568.9,2568.7,0.6846]
[1750041176545,0.77845,2568.8,2568.5,4.67146771]
[1750041176753,0.77845,2568.8,2568.5,0.68513771]
[1750041176754,0.77851,2568.6,2568.5,0.68513771]
[1750041177346,2.95889159,2568.6,2568.5,0.00583771]
[1750041179649,0.77849,2568.7,2568.5,0.78437771]
[1750041179850,0.77849,2568.7,2568.5,0.00583771]
[1750041180350,0.77851,2568.6,2568.5,0.00583771]
[1750041181846,3.21363771,2569.1,2568.5,5.3940193]
[1750041182050,0.77841,2569.0,2568.6,1.9178]
[1750041182248,0.78419771,2569.1,2568.9,0.77841]
[1750041182454,0.78419771,2569.1,2568.8,0.77843]
[1750041182656,0.78419771,2569.1,2568.8,2.74393]
[1750041183258,0.78419771,2569.1,2568.9,0.77842]
[1750041183559,0.78419771,2569.1,2568.9,2.07952]
[1750041185249,0.00583771,2569.1,2568.9,2.07952]
[1750041185453,0.00583771,2569.1,2569.0,0.77839]
[1750041185755,0.00583771,2569.1,2569.0,2.09569]
[1750041186059,0.78419771,2569.1,2569.0,1.3173]
[1750041186753,0.00583771,2569.1,2569.0,2.09569]
[1750041188158,0.78419771,2569.1,2569.0,1.3173]
[1750041188856,0.98708956,2569.1,2569.0,2.09569]
[1750041189450,0.00583771,2569.1,2569.0,2.09569]
[1750041189652,0.98736755,2569.1,2569.0,2.09569]
[1750041190650,0.00583771,2569.1,2569.0,2.09569]
[1750041191846,5.80821712,2570.3,2569.1,1.94591]
[1750041191847,0.77816,2569.8,2569.1,1.94591]
[1750041192060,1.75947023,2569.7,2569.5,0.77821]
[1750041192246,1.75947023,2569.7,2569.2,0.633]
[1750041192247,3.16124912,2569.6,2569.2,0.633]
[1750041192451,0.7783,2569.3,2569.2,0.633]
[1750041192755,0.7783,2569.3,2569.0,2.0153]
[1750041192756,0.77836,2569.1,2569.0,2.0153]
[1750041193258,1.7593797,2569.1,2569.0,2.0153]
[1750041193654,0.9810197,2569.1,2569.0,2.0153]
[1750041193962,0.9810197,2569.1,2569.0,2.79369]
[1750041194257,0.77833,2569.2,2569.0,2.79369]
[1750041194659,0.77836,2569.1,2569.0,2.0153]
[1750041195460,0.77836,2569.1,2569.0,2.79369]
[1750041195651,0.77836,2569.1,2569.0,2.0153]
[1750041195852,1.7592891,2569.1,2569.0,0.6501]
[1750041197256,0.77839,2569.0,2568.9,0.6721]
[1750041197460,0.9809291,2569.0,2568.5,0.78437771]
[1750041197654,2.95889159,2568.6,2568.5,0.00583771]
[1750041197856,0.77851,2568.6,2568.5,0.00583771]
[1750041199166,7.14768324,2568.6,2568.5,0.00583771]
[1750041199568,6.36917324,2568.6,2567.6,9.9988]
[1750041199766,2.18038159,2568.2,2567.8,0.6825]
[1750041199952,2.18038159,2568.2,2567.9,1.347]
[1750041200156,2.95909159,2568.0,2567.8,0.6825]
[1750041200463,0.77869,2568.0,2567.8,1.46125]
[1750041200762,0.77869,2568.0,2567.8,2.80825]
[1750041200955,3.98648,2568.1,2567.8,2.80825]
[1750041201756,3.98648,2568.1,2567.9,0.77872]
[1750041202158,0.77868,2568.1,2567.9,0.77872]
[1750041202355,0.78448771,2568.2,2567.9,2.03312]
[1750041202551,0.00583771,2568.2,2568.1,0.77866]
[1750041202753,0.00583771,2568.2,2568.1,2.03306]
[1750041202954,0.77845,2568.8,2568.5,0.77853]
[1750041203255,0.9801784,2568.7,2568.3,2.18038159]
[1750041203455,0.7785,2568.7,2568.4,3.27725]
[1750041203650,0.77851,2568.6,2568.4,3.27725]
[1750041203859,3.98631,2568.6,2568.4,2.4987]
[1750041204060,3.98631,2568.6,2568.4,3.27727]
[1750041204357,3.2078,2568.6,2568.5,0.77854]
[1750041204761,3.2078,2568.6,2568.5,1.331]
[1750041205060,3.2078,2568.6,2568.4,1.2443]
[1750041205061,0.77854,2568.5,2568.4,1.2443]
[1750041205260,7.57369277,2568.6,2568.0,8.123]
[1750041205450,3.2078,2568.2,2567.9,0.77871]
[1750041205857,3.2078,2568.2,2567.8,0.77874]
[1750041205858,0.77868,2568.1,2567.8,0.77874]
[1750041206057,0.77868,2568.1,2567.8,2.10974]
[1750041206359,3.98645,2568.2,2568.0,0.77869]
[1750041206659,0.77862,2568.3,2568.1,0.77865]
[1750041207249,3.847,2568.5,2567.8,1.331]
[1750041207452,7.4522,2568.7,2568.0,3.2078]